Cogmind - Beta 14 @@@ ROGUE MODE // 2024.10.13 @ 20:54:50 Player: APerTAS Result: Destroyed by Y-45 Defender with Beam Rifle Performance ------------- Evolutions (2) 1000 Regions Visited (6) 1200 Robots Destroyed (31) 155 Value Destroyed (997) 997 Prototype IDs (27) 540 Alien Tech Used (0) 0 Bonus (257) 257 TOTAL SCORE: 4149 Bonus ------- Aligned with FarCom 300 Friendly Fire -43 Cogmind --------- Core Integrity 0/550 Matter 300/300 Energy 100/100 System Corruption 0% Temperature Cool (27) Movement Core (50) Location -8/Storage Parts ------- > --- POWER (1) -------- (None) > --- PROPULSION (2) --- (None) > --- UTILITY (5) ------ (None) > --- WEAPON (3) ------- (None) > --- INVENTORY (5) ---- Improved VTOL Module Hacking Suite Plasma Cannon Plasma Cannon Rocket Launcher Peak State ------------ > --- POWER ------------ Light Nuclear Core > --- PROPULSION ------- Light Treads Light Treads > --- UTILITY ---------- Coolant Injector Coolant Injector Small Storage Unit Signal Interpreter Drone Bay > --- WEAPON ----------- Plasma Cannon Plasma Cannon Longsword +1 > --- INVENTORY -------- Light Ion Engine Light Nuclear Core Light Treads Improved VTOL Module Hacking Suite Plasma Cannon Plasma Cannon Rocket Launcher [Rating: 38] Favorites ----------- Power Light Nuclear Core Engine Ion Engine Power Core Light Nuclear Core Propulsion Light Treads Treads Light Treads Leg Aluminum Leg Utility Small Storage Unit Device Seismic Detector Storage Small Storage Unit Processor Signal Interpreter Weapon Light Assault Rifle Energy Gun EM Pulse Gun Energy Cannon Plasma Cannon Ballistic Gun Light Assault Rifle Launcher Rocket Launcher Slashing Weapon Longsword +1 Build | -11 -10 -10 -10 -9 -8 -8 ------- Run | Yrd Mat Min Exi Min Mat Sto Slots Evolved 4 | . . . . . 4 . Power . | . . . . . . . Propulsion . | . . . . . . . Utility 3 | . . . . . 3 . Weapon 1 | . . . . . 1 . Parts Attached 37 | 7 6 4 1 1 13 5 Power 8 | 1 1 1 . . 3 2 Engine 4 | 1 1 . . . 1 1 Core 4 | . . 1 . . 2 1 Reactor . | . . . . . . . Propulsion 9 | 2 3 . . . 2 2 Treads 8 | 2 3 . . . 2 1 Leg 1 | . . . . . . 1 Wheel . | . . . . . . . Hover . | . . . . . . . Flight . | . . . . . . . Utility 6 | 1 1 . . . 3 1 Device 4 | . 1 . . . 2 1 Storage 1 | 1 . . . . . . Processor 1 | . . . . . 1 . Hackware . | . . . . . . . Protection . | . . . . . . . Artifact . | . . . . . . . Weapon 14 | 3 1 3 1 1 5 . Energy Gun 1 | . . 1 . . . . Energy Cannon 2 | . . . . . 2 . Ballistic Gun 8 | 3 1 2 . . 2 . Ballistic Cannon . | . . . . . . . Launcher 2 | . . . . 1 1 . Special Weapon . | . . . . . . . Impact Weapon . | . . . . . . . Slashing Weapon 1 | . . . 1 . . . Piercing Weapon . | . . . . . . . Special Melee Weapon . | . . . . . . . Unidentified Prototypes . | . . . . . . . Parts Lost 11 | . . 1 . 2 . 8 Power 3 | . . . . 1 . 2 Propulsion 3 | . . . . . . 3 Utility 2 | . . . . 1 . 1 Weapon 3 | . . 1 . . . 2 Highest Loss Streak 8 | . . 1 . 2 . 8 To Critical Strikes . | . . . . . . . Average Slot Usage (%) 92 | . 92 100 81 99 79 93 Engine 3 | . 14 2 . . 6 . Core 8 | . . 11 14 14 2 7 Treads 24 | . 28 28 28 28 18 16 Device 13 | . 7 14 14 14 8 24 Storage 12 | . 14 14 14 14 9 8 Processor 2 | . . . . . 8 8 Energy Gun 2 | . . 8 . . . . Energy Cannon 3 | . . . . . 6 17 Ballistic Gun 10 | . 28 19 3 . 5 . Launcher 3 | . . . . 13 5 . Slashing Weapon 5 | . . . 7 14 9 8 Peak Build Rating 38 | 6 8 10 16 18 33 38 Average Rating 16 | 4 7 9 12 17 23 35 On Entrance 12 | . 6 8 10 16 14 33 Naked Turns 9 | . . . . . . 9 Heaviest Build 35 | 13 14 14 14 18 29 35 Greatest Support 40 | 40 40 40 40 40 40 40 Greatest Overweight (x) 8 | . . . . . . 8 Average Overweight (x) . | . . . . . . . Largest Inventory Capacity 8 | 8 8 8 8 8 8 8 Average Capacity 7 | 6 8 8 8 8 8 7 Most Carried 8 | 4 8 8 8 8 8 8 Average Carried 7 | 2 6 7 7 7 6 7 Final Capacity 8 | 8 8 8 8 8 8 5 Final Carried 8 | 4 8 7 8 7 8 5 Class Distribution -------------------- 100% | Mutant Dominant Class ---------------- Mutant | -10/Materials Mutant | -10/Mines Mutant | -10/Exiles Mutant | -9/Mines Mutant | -8/Materials Mutant | -8/Storage Resources | -11 -10 -10 -10 -9 -8 -8 ----------- Run | Yrd Mat Min Exi Min Mat Sto Matter Collected 790 | 189 187 180 . 54 120 60 Remotely . | . . . . . . . Salvage Created 1145 | . 234 139 . 31 249 492 Parts 52 | . 18 11 . . 12 11 Haulers Intercepted 1 | . 1 . . . . . Recyclers Shooed 1 | . . 1 . . . . Parts Field Recycled . | . . . . . . . Retrieved Matter . | . . . . . . . Parts Self-Destructed . | . . . . . . . Prevented . | . . . . . . . Kills | -11 -10 -10 -10 -9 -8 -8 ------- Run | Yrd Mat Min Exi Min Mat Sto Combat Hostiles Destroyed 32 | . 7 7 . 3 5 10 Melee 8 | . . . . 3 2 3 Guns 12 | . 7 5 . . . . Cannons 7 | . . . . . 2 5 AOE 2 | . . 2 . . . . Classes Destroyed 9 | . 4 . . 1 3 1 Hauler 1 | . 1 . . . . . Operator 1 | . 1 . . . . . Swarmer 10 | . 4 6 . . . . Grunt 15 | . 3 1 . . 2 9 Brawler 1 | . . . . . . 1 Duelist 1 | . . . . . 1 . Sentry 1 | . . . . . 1 . Hunter 1 | . . . . . 1 . Assembled 3 | . . . . 3 . . Best Kill Streak 5 | . 5 3 . 3 3 5 Combat Bots Only 5 | . 5 3 . 3 3 5 Max Kills in Single Turn 2 | . 1 2 . 1 1 1 Gunslinging . | . . . . . . . Exploded 2 | . . 2 . . . . Melee 1 | . . . . 1 1 1 Uniques/NPCs Destroyed . | . . . . . . . Combat | -11 -10 -10 -10 -9 -8 -8 -------- Run | Yrd Mat Min Exi Min Mat Sto Hostile Shots Fired 253 | . 67 30 . 16 24 116 Missed 66 | . 16 6 . 5 9 30 Damage Taken 2505 | . 431 289 . 167 212 1406 Core 728 | . 70 62 . 45 70 481 Absorbed by Shields . | . . . . . . . Regen/Repaired (Parts) 92 | . . . . . 92 . Core Remaining (%) 64 | 100 . . . 29 . . Volleys Fired 85 | . 29 21 . . 12 23 Largest 2 | . 2 2 . . 2 2 Hottest 160 | . 40 60 . . 160 160 Shots Fired 170 | . 57 42 . 1 24 46 Gun 99 | . 57 42 . . . . Cannon 70 | . . . . . 24 46 Launcher 1 | . . . . 1 . . Special . | . . . . . . . Kinetic 93 | . 57 36 . . . . Thermal 70 | . . . . . 24 46 Explosive 1 | . . . . 1 . . Electromagnetic 6 | . . 6 . . . . Robot Hit Streak 9 | . 5 5 . 6 4 9 Robot Miss Streak 4 | . 2 3 . . 3 4 Penetration Max . | . . . . . . . Secondary Targets 3 | . 3 . . . . . Max Gunslinging Chain 1 | . 1 . . . . . Shots Hit Robots 127 | . 41 23 . 6 19 38 Core Hits 49 | . 14 12 . 3 7 13 Critical Kills 2 | . . . . . 1 1 Critical Parts Destroyed 1 | . . 1 . . . . Critical Strikes 6 | . . 1 . . 3 2 Meltdown 2 | . . . . . 1 1 Destroy 1 | . . 1 . . . . Sever 3 | . . . . . 2 1 Melee Attacks 19 | . . . . 5 8 6 Impact . | . . . . . . . Slashing 19 | . . . . 5 8 6 Piercing . | . . . . . . . Sneak Attacks . | . . . . . . . Combat Hostiles . | . . . . . . . Follow-up Attacks . | . . . . . . . Damage Inflicted 2901 | . 436 333 . 357 641 1134 Guns 667 | . 436 231 . . . . Cannons 1149 | . . . . . 281 868 Explosions 145 | . . 102 . 43 . . Melee 910 | . . . . 314 360 236 Ramming 30 | . . . . . . 30 Kinetic 632 | . 436 196 . . . . Thermal 1251 | . . 102 . . 281 868 Explosive 43 | . . . . 43 . . Electromagnetic 35 | . . 35 . . . . Impact . | . . . . . . . Slashing 910 | . . . . 314 360 236 Piercing . | . . . . . . . Highest Corruption 7 | . 2 2 2 7 . . Average Corruption 2 | . 1 2 2 2 . . Corruption Purged . | . . . . . . . Corruption Blocked . | . . . . . . . Effects 25 | . 3 12 3 7 . . Message Errors 7 | . . 3 2 2 . . Matter Fused 4 | . 1 2 . 1 . . Heat Flow Errors 2 | . 1 1 . . . . Energy Discharges 3 | . . . 1 2 . . Data Loss (minor) 4 | . . 3 . 1 . . Data Loss (major) 3 | . . 3 . . . . Misfires 1 | . . . . 1 . . Weapon Failures 1 | . 1 . . . . . Overload Shots . | . . . . . . . Overflow Damage 71 | . . . . 49 15 7 Projectiles 7 | . . . . . . 7 Explosions . | . . . . . . . Melee 64 | . . . . 49 15 . Knockbacks . | . . . . . . . Impact . | . . . . . . . Kinetic . | . . . . . . . Secondary . | . . . . . . . Self-Inflicted Damage 107 | . . 38 . 39 . 30 Shots 2 | . . 1 . 1 . . Rammed . | . . . . . . . Targets Rammed . | . . . . . . . Kicked . | . . . . . . . Crushed . | . . . . . . . Highest Temperature 301 | . 174 301 . 2 198 198 Average Temperature 121 | . 65 127 . 2 130 132 Received Heat Transfer 962 | . 72 72 . 44 90 684 Effects 1 | . . 1 . . . . Energy Bleed 1 | . . 1 . . . . Siege Activations . | . . . . . . . Robots Corrupted . | . . . . . . . Combat Hostiles . | . . . . . . . Parts Fried . | . . . . . . . Impact Corruptions . | . . . . . . . Robots Melted 3 | . . . . . 1 2 Combat Hostiles 3 | . . . . . 1 2 Parts Melted 14 | . . . . . 4 10 Heat Transferred 2300 | . . 50 . . 550 1700 Parts Sabotaged . | . . . . . . . Parts Stolen . | . . . . . . . Parts Stripped . | . . . . . . . Power Chain Reactions 1 | . . 1 . . . . Alert | -11 -10 -10 -10 -9 -8 -8 ------- Run | Yrd Mat Min Exi Min Mat Sto Peak Influence 322 | . 187 187 . 13 195 322 Initial 72 | . . 72 . . . . Average 71 | . 121 95 . 7 49 100 Maximum Alert Level 1 | . . . . . . 1 Low Security (%) 96 | 100 100 100 . 100 100 72 Level 1 3 | . . . . . . 27 Level 2 . | . . . . . . . Level 3 . | . . . . . . . Level 4 . | . . . . . . . Level 5 . | . . . . . . . High Security . | . . . . . . . Max Security . | . . . . . . . Squads Dispatched 4 | . 1 . . . . 3 Investigation 2 | . . . . . . 2 Extermination . | . . . . . . . Reinforcement 2 | . 1 . . . . 1 Assault . | . . . . . . . Garrison . | . . . . . . . Intercept . | . . . . . . . Searches Triggered . | . . . . . . . Construction Impeded . | . . . . . . . Haulers Reinforced . | . . . . . . . Active Scanning Responses . | . . . . . . . Cargo Convoy Interrupts . | . . . . . . . Stealth | -11 -10 -10 -10 -9 -8 -8 --------- Run | Yrd Mat Min Exi Min Mat Sto Distress Signals 5 | . 2 . . . . 3 Communications Jammed . | . . . . . . . Distress Signals . | . . . . . . . Times Spotted 54 | . 14 6 . 8 7 19 Peak Tracking Total 9 | . 7 3 . 3 3 9 Tactical Retreats 4 | . . . . 2 . 2 Traps | -11 -10 -10 -10 -9 -8 -8 ------- Run | Yrd Mat Min Exi Min Mat Sto Traps Triggered 4 | . 2 . . . . 2 Indirectly . | . . . . . . . Trap Hack Attempts . | . . . . . . . Triggered . | . . . . . . . Disarmed . | . . . . . . . Reprogrammed . | . . . . . . . Reused . | . . . . . . . Traps Extracted . | . . . . . . . Installed . | . . . . . . . Triggered . | . . . . . . . Machines | -11 -10 -10 -10 -9 -8 -8 ---------- Run | Yrd Mat Min Exi Min Mat Sto Machines Disabled 4 | . 1 . . . . 3 Max in Single Turn 1 | . 1 . . . . 1 Machines Repaired . | . . . . . . . Machines Dismantled . | . . . . . . . Machines Sabotaged . | . . . . . . . Overloaded Fab Kills . | . . . . . . . Hacking | -11 -10 -10 -10 -9 -8 -8 --------- Run | Yrd Mat Min Exi Min Mat Sto Machines Accessed 10 | . . . 3 . 3 4 Terminals 4 | . . . . . 1 3 Fabricators . | . . . . . . . Repair Stations 1 | . . . . . 1 . Recycling Units 2 | . . . . . 1 1 Scanalyzers . | . . . . . . . Garrison Access . | . . . . . . . Total Hacks 39 | . . . 11 . 13 15 Successful 25 | . . . 11 . 8 6 Failed 14 | . . . . . 5 9 Catastrophic 2 | . . . . . . 2 Database Lockouts . | . . . . . . . Manual 17 | . . . 1 . 8 8 Terminals 17 | . . . . . 5 12 Fabricators . | . . . . . . . Repair Stations 2 | . . . . . 2 . Recycling Units 9 | . . . . . 6 3 Scanalyzers . | . . . . . . . Garrison Access . | . . . . . . . Terminal Hacks 15 | . . . 11 . 1 3 Record 10 | . . . 10 . . . Prototype ID Bank 2 | . . . . . 1 1 Open Door 1 | . . . . . . 1 Zone Layout 1 | . . . . . . 1 Derelict Proto ID Bank 1 | . . . 1 . . . Fabricator Hacks . | . . . . . . . Repair Station Hacks 2 | . . . . . 2 . Scan Component 1 | . . . . . 1 . Repair 1 | . . . . . 1 . Recycling Unit Hacks 2 | . . . . . 1 1 Report Inventory 2 | . . . . . 1 1 Scanalyzer . | . . . . . . . Garrison Access Hacks . | . . . . . . . Unauthorized Hacks 6 | . . . . . 4 2 Terminals 2 | . . . . . 1 1 Botnet 2 | . . . . . 1 1 Fabricators . | . . . . . . . Repair Stations . | . . . . . . . Recycling Units 4 | . . . . . 3 1 Monitor 2 | . . . . . 1 1 Recyclers 1 | . . . . . 1 . Mask 1 | . . . . . 1 . Scanalyzers . | . . . . . . . Garrison Access . | . . . . . . . Data Cores Recovered . | . . . . . . . Used . | . . . . . . . Hacking Detections 5 | . . . . . 2 3 Full Trace Events 1 | . . . . . . 1 Feedback Events . | . . . . . . . Feedback Blocked . | . . . . . . . Robot Schematics Acquired . | . . . . . . . Robots Built . | . . . . . . . Authchips . | . . . . . . . Time . | . . . . . . . Total Robot Build Rating . | . . . . . . . Part Schematics Acquired . | . . . . . . . Parts Built . | . . . . . . . Authchips . | . . . . . . . Time . | . . . . . . . Total Part Build Rating . | . . . . . . . Parts Repaired 1 | . . . . . 1 . Time 26 | . . . . . 26 . Parts Recycled . | . . . . . . . Recycled Matter . | . . . . . . . Retrieved Matter . | . . . . . . . Retrieved Components . | . . . . . . . Parts Scanalyzed . | . . . . . . . Part Schematics Acquired . | . . . . . . . Parts Damaged . | . . . . . . . Bothacking | -11 -10 -10 -10 -9 -8 -8 ------------ Run | Yrd Mat Min Exi Min Mat Sto Used RIF Installer . | . . . . . . . Robots Hacked . | . . . . . . . Non-combat . | . . . . . . . Combat . | . . . . . . . Robot Hacks Applied . | . . . . . . . Relay Couplers Released . | . . . . . . . Fabnet Peak Effective % . | . . . . . . . Robots Rewired . | . . . . . . . Allies Hacked . | . . . . . . . Hacks Repelled . | . . . . . . . Allies | -11 -10 -10 -10 -9 -8 -8 -------- Run | Yrd Mat Min Exi Min Mat Sto Total Allies 1 | . . . . 1 . . Largest Group 1 | . . . . 1 . . Highest-Rated Group 31 | . . . . 31 . . Highest-Rated Ally 31 | . . . . 31 . . Total Orders . | . . . . . . . Ally Attacks . | . . . . . . . Total Damage . | . . . . . . . Kills . | . . . . . . . Allies Corrupted . | . . . . . . . Allies Melted . | . . . . . . . Intel | -11 -10 -10 -10 -9 -8 -8 ------- Run | Yrd Mat Min Exi Min Mat Sto Robot Analysis Total . | . . . . . . . Derelict Logs Recovered 3 | . . 2 . 1 . . Drone Launches 2 | . . . . . . 2 Drone Recoveries . | . . . . . . . Exploration | -11 -10 -10 -10 -9 -8 -8 ------------- Run | Yrd Mat Min Exi Min Mat Sto Turns Passed 2920 | 93 371 786 361 504 449 356 Spaces Moved 1508 | 53 147 451 225 308 200 124 Core 20 | 4 . . . . . 16 Treads 1488 | 49 147 451 225 308 200 108 Legs . | . . . . . . . Wheels . | . . . . . . . Hover . | . . . . . . . Flight . | . . . . . . . Fastest Speed 50 | 50 160 160 160 160 160 50 Average Speed 159 | 151 160 160 160 160 160 154 Slowest Speed 450 | 160 160 160 160 160 160 450 Overloaded Moves . | . . . . . . . Propulsion Burnouts . | . . . . . . . Robots Hopped . | . . . . . . . Cave-ins Triggered . | . . . . . . . Exploration Rate (%) 43 | 4 34 93 60 76 17 21 Regions Visited 6 Branch Regions 4 Pre-discovered Areas 1 | . . . 1 . . . Known Exits Taken 1 | . . . . . 1 . Unknown Exits Taken 5 | 1 1 1 1 1 . . Scrap Searched 4 | . . 2 . 2 . . Spaces Dug 1 | . . . . . . 1 Terrain Destroyed 36 | . . 5 . 13 12 6 Melee 1 | . . . . . . 1 Projectile 17 | . . . . . 12 5 AOE 18 | . . 5 . 13 . . Terrain Rammed 3 | . . . . . . 3 Walls Destroyed . | . . . . . . . Machines Disabled . | . . . . . . . Actions | -11 -10 -10 -10 -9 -8 -8 --------- Run | Yrd Mat Min Exi Min Mat Sto Total 1847 | 62 232 478 227 314 298 236 Wait 169 | . 42 . . 1 51 75 Move 1502 | 52 146 450 224 307 199 124 Hop . | . . . . . . . Pick Up 14 | 3 4 1 . . 6 . Fast Attach 16 | 6 1 . 1 . 6 2 Attach 7 | . . 1 . 1 2 3 Detach 1 | . . . 1 . . . Swap 14 | 1 5 3 . . 5 . Drop 17 | . 5 2 1 . 9 . Fire 85 | . 29 21 . . 12 23 Melee 19 | . . . . 5 8 6 Ram 3 | . . . . . . 3 Kick . | . . . . . . . Crush . | . . . . . . . Escape Stasis . | . . . . . . . Rewire . | . . . . . . . Trap . | . . . . . . . Miscellaneous . | . . . . . . . Route ------- -11/Scrapyard -10/Materials (discovered 2 exits: [*Min x2]) -10/Mines (discovered 3 exits: [*Mat x2] / *Exi) -10/Exiles -9/Mines -8/Materials -8/Storage History --------- Turn | Location | Event 3 | -11/Scrapyard | Discovered new exit (range 15) 94 | -11/Scrapyard | Entered Materials 300 | -10/Materials | Build established: Mutant 352 | -10/Materials | Discovered new exit (range 11) 355 | -10/Materials | Discovered new exit (range 11) 465 | -10/Materials | Entered Mines 767 | -10/Mines | Discovered new exit (range 8) 788 | -10/Mines | Learned Materials garrison access intel 853 | -10/Mines | Learned Materials terminal intel 1134 | -10/Mines | Received a Rocket Launcher from a helpful Derelict 1167 | -10/Mines | Core integrity fell below 50% 1184 | -10/Mines | Discovered new exit (range 5) 1244 | -10/Mines | Deemed a non-threat by the Exiles lab entrance 1244 | -10/Mines | Discovered new exit (range 5) 1251 | -10/Mines | Entered Exiles 1291 | -10/Exiles | Met 8R-AWN 1318 | -10/Exiles | Met EX-HEX 1364 | -10/Exiles | Met EX-BIN 1382 | -10/Exiles | Aligned with FarCom system 1384 | -10/Exiles | Given EX-Vault access code 1420 | -10/Exiles | Opened EX-Vault 1432 | -10/Exiles | Found Longsword +1 1467 | -10/Exiles | Warned to stay clear of 0b10 Research branches 1513 | -10/Exiles | Met EX-DEC 1552 | -10/Exiles | Learned location of Zion (-6) 1598 | -10/Exiles | Discovered new exit (range 10) 1612 | -10/Exiles | Left Exiles lab with Longsword +1 1612 | -10/Exiles | Entered Mines 1634 | -9/Mines | Assembled infested the area 1727 | -9/Mines | Received a Mining Laser from a helpful Derelict 1804 | -9/Mines | Learned location of 1 exit from Materials 2104 | -9/Mines | Discovered new exit (range 8) 2116 | -9/Mines | Entered Materials 2116 | -8/Materials | Evolved 4 slots: Utility x3, Weapon x1 2117 | -8/Materials | Identified exit to Storage 2118 | -8/Materials | Loaded intel: 12 terminal locations 2119 | -8/Materials | Loaded intel: 1 garrison access location 2200 | -8/Materials | Repaired Lgt. Treads 2565 | -8/Materials | Entered Storage 2892 | -8/Storage | Core integrity fell below 50% 2912 | -8/Storage | Released all parts (7) 2916 | -8/Storage | Core integrity fell below 20% 2921 | -8/Storage | Destroyed by Y-45 Defender with Beam Rifle Last Messages --------------- 02912_ >> MONITOR: Recycling Unit S002 accepting Corrupted Prototype Energy Gun (91%). 02912_ Penetrated by Slug. 02912_ Released Lgt. Ion Engine. 02912_ Released Plasma Cannon. 02912_ Released Coolant Injector. 02912_ Released Signal Interpreter. 02912_ Released Sml. Storage Unit. 02912_ Released Coolant Injector. 02912_ Released Aluminum Leg. 02912_ Acquired 10 matter. 02915_ Critical hit (Burn: +37). 02919_ Connecting with Door Terminal... 02919_ ALERT: Suspicious activity at Terminal S005. Dispatching Investigation squad. 02919_ Slammed into Wall. 02919_ Destabilizing: Core damaged (-16). 02920_ Slammed into Wall. 02921_ Destabilizing: Core damaged (-27). 02921_ Critical hit (Burn: +37). Map ----- +----------------------------------------------------+ | | | | | | | | | | | | | | | ?????????????????????????????????????????????????? | | ????????????????????????????????????##########???? | | ????????????????????????????????????###T#!!!!#???? | | ????????????????????????????????????## #???? | | ????????????????????????????????????## #! !!#???? | | ????############???###?###??????????## [######???? | | ????+ #####"###"##############+######???? | | "" ?# % % #???? | | "" # "" % % % #???? | | "" + T" %[[[ #???? | | ?????# ##*#+#########"###"#####+######???? | | ?????# # ##???###?### """ """ #????? | | ?????# %# "#?????????# """ """ #????? | | ?????# " # T########### """ """ #????? | | ?????# " %! # """"" "########### #????? | | ?????# ""!h[ # """"" ## # ### #????? | | ?????# ^ =%%w # """"" ## " ### #????? | | ?????# !]*%* ########## " ### #????? | | ?????# "!![ /@ " ### #????? | | ?????# ""= Y ##T# ####"Y"######????? | | ?? "" #### ##?#"""#?????????? | | ? ####################?#####?????????? | | ###### ##???????###########???????????????? | | ?????## """ #????????# #???????????????? | | ??????# """ #??####### #???????????????? | | ??????# """ #### # #???????????????? | | ??????+ # """""" #???????????????? | | ????? # + " " #???????????????? | | ????##?? """ # " " #???????????????? | | ??????????"" ##?????????????????????????????????? | | ???????????" #??????????????????????????????????? | | ??????????? #??????????????????????????????????? | | ???????????? ???????????????????????????????????? | | ?????????????????????????????????????????????????? | | ?????????????????????????????????????????????????? | | ?????????????????????????????????????????????????? | | ?????????????????????????????????????????????????? | | ?????????????????????????????????????????????????? | | ?????????????????????????????????????????????????? | | ?????????????????????????????????????????????????? | | ?????????????????????????????????????????????????? | | ?????????????????????????????????????????????????? | | ?????????????????????????????????????????????????? | +----------------------------------------------------+ Best States ------------- Heat Dissipation 31 Coolant Potential 130 Energy Generation 14 Energy Capacity 250 Matter Stores 300 Matter Capacity 300 Sight Range 16 Terrain Scan Density 10 Evasion (%) 50 Recoil Reduction 2 Item Schematics ----------------- None Robot Schematics ------------------ None Fabricated ------------ Nothing Alien Tech Used ----------------- None Achievements -------------- None Challenges ------------ None Game ------ Seed GravmagWeldingReconfigurator Manual? 0 Play Time 00:23:20 Cumulative 36.5 hours Start 2024.10.13 @ 20:31:39 End 2024.10.13 @ 20:54:50 Sessions 1 Manual Loads 0 Difficulty Rogue Special Mode None Game No. 142 Rogue 142 Adventurer 0 Explorer 0 Win Type - Total 0 Types 0/0/0/0/0/0/0/0/0 Lore% 45 Gallery% 32 Achievement% 34 Wizard Run 0 Options --------- Layout 0 ASCII 0 Keyboard 0 Movement Arrows Keybinds 0 Fullscreen 1 Font 24/Terminus Map View 64x52 Zoom Use 0% Tactical HUD 1 Map Filters NONE Filters NONE Steam 1 RUN: 50e97119-a008-4680-9e60-d17290941518